bitfinex/quotes_SOLUSD_20250915
["timestamp","ask_amount","ask_price","bid_price","bid_amount"]
[1757925254029,13.59559401,236.45,236.44,4.4294028]
[1757925254237,47.61559401,236.45,236.44,5.1194028]
[1757925254436,13.59559401,236.45,236.44,5.1194028]
[1757925254730,47.59559401,236.45,236.44,0.2]
[1757925255116,47.59559401,236.45,236.44,0.89]
[1757925255319,13.59559401,236.45,236.44,5.1194028]
[1757925255643,47.59559401,236.45,236.44,5.1194028]
[1757925256538,47.59559401,236.45,236.44,0.2]
[1757925257030,13.59559401,236.46,236.44,5.1194028]
[1757925257353,47.59559401,236.46,236.45,4.91922393]
[1757925257542,47.59559401,236.46,236.45,0.69]
[1757925257722,47.59559401,236.46,236.44,0.2]
[1757925257923,47.59559401,236.46,236.44,0.89]
[1757925258243,133.17,236.45,236.44,0.2]
[1757925258444,146.76559401,236.45,236.44,0.2]
[1757925258936,15.59761529,236.45,236.44,0.2]
[1757925259140,25.19065121,236.45,236.44,0.2]
[1757925259651,29.41987514,236.45,236.44,0.2]
[1757925260134,63.41987514,236.45,236.44,0.2]
[1757925260820,13.59559401,236.45,236.44,0.2]
[1757925261020,47.59559401,236.45,236.44,0.2]
[1757925262757,51.82481794,236.45,236.44,0.2]
[1757925263138,52.49481794,236.45,236.44,0.2]
[1757925263338,48.26559401,236.45,236.44,0.2]
[1757925263650,52.49481794,236.45,236.44,0.2]
[1757925265328,47.59559401,236.45,236.44,0.2]
[1757925265539,13.59559401,236.45,236.44,0.2]
[1757925265736,47.59559401,236.45,236.44,0.2]
[1757925266337,52.49481794,236.45,236.44,0.2]
[1757925268337,57.83320633,236.45,236.44,0.2]
[1757925269432,64.48639596,236.45,236.44,0.2]
[1757925270737,59.56717203,236.45,236.44,0.2]
[1757925270953,64.46639596,236.45,236.44,0.2]
[1757925271549,25.58717203,236.45,236.44,0.2]
[1757925271762,59.56717203,236.45,236.44,0.2]
[1757925271960,64.46639596,236.45,236.44,0.2]
[1757925273058,63.79639596,236.45,236.44,0.2]
[1757925274444,18.9339824,236.45,236.44,0.2]
[1757925274647,47.57559401,236.45,236.44,0.2]
[1757925275756,51.80481794,236.45,236.44,0.2]
[1757925275954,52.47481794,236.45,236.44,0.2]
[1757925277463,47.57559401,236.45,236.44,0.2]
[1757925277659,47.55559401,236.45,236.44,0.2]
[1757925277957,51.78481794,236.45,236.44,0.2]
[1757925278657,58.25780685,236.45,236.44,0.2]
[1757925278860,29.63619524,236.45,236.44,0.2]
[1757925279049,28.96619524,236.45,236.44,0.2]
[1757925279250,62.92619524,236.45,236.44,0.2]
[1757925279450,28.96619524,236.45,236.44,0.2]
[1757925279650,63.58619524,236.45,236.44,0.2]
[1757925281868,39.59559401,236.42,236.41,0.06]
[1757925282165,81.27530446,236.42,236.41,0.06]
[1757925282346,86.20717203,236.42,236.41,0.06]
[1757925283177,13.59559401,236.29,236.27,0.69]
[1757925283379,13.59559401,236.17,236.16,0.69]
[1757925283581,47.55559401,236.17,236.16,0.69]
[1757925284165,26.0,236.18,236.08,4.23585225]
[1757925284368,33.96,236.17,236.16,0.69]
[1757925284545,33.96,236.18,236.16,0.69]
[1757925285678,33.96,236.18,236.17,4.23423804]
[1757925285878,11.87460464,236.28,236.17,15.50983316]
[1757925286041,26.0,236.24,236.18,0.69]
[1757925286246,13.59559401,236.3,236.18,0.69]
[1757925286446,33.96,236.29,236.18,0.69]
[1757925286741,26.0,236.26,236.18,0.69]
[1757925286947,26.0,236.2,236.18,0.69]
[1757925287156,33.96,236.19,236.18,0.69]
[1757925287401,26.0,236.2,236.16,4.23429716]
[1757925287676,33.96,236.19,236.08,21.17852729]
[1757925287850,33.96,236.18,236.09,0.69]
[1757925288046,26.0,236.2,236.09,0.69]
[1757925288376,33.96,236.19,236.09,0.69]
[1757925288741,33.96,236.18,236.09,0.69]
[1757925288946,13.59559401,236.28,236.09,0.69]
[1757925289163,26.0,236.21,236.09,0.69]
[1757925289369,33.96,236.2,236.09,0.69]
[1757925289548,33.96,236.2,236.1,36.00169418]
[1757925289860,33.96,236.19,236.11,0.69]
[1757925290058,33.96,236.18,236.11,0.69]
[1757925290265,33.96,236.19,236.11,0.69]
[1757925290453,26.0,236.21,236.11,0.69]
[1757925290864,0.66,236.3,236.11,0.69]
[1757925291065,26.0,236.25,236.13,26.0]
[1757925291276,13.59559401,236.29,236.14,0.69]
[1757925291476,3.40092914,236.3,236.14,0.69]
[1757925291680,26.0,236.18,236.14,4.23477076]
[1757925291973,26.0,236.18,236.14,4.92477076]
[1757925292277,26.0,236.18,236.14,4.23477076]
[1757925292470,34.62,236.17,236.1,0.69]
[1757925293164,33.96,236.17,236.1,0.69]
[1757925293487,26.0,236.18,236.1,0.69]
[1757925293775,33.96,236.16,236.11,4.23531404]
[1757925294079,33.96,236.16,236.05,4.23639059]
[1757925294080,13.59559401,236.11,236.05,4.23639059]
[1757925294260,33.96,236.1,236.05,4.23639059]
[1757925294461,33.96,236.09,236.05,4.92639059]
[1757925294901,13.59559401,236.11,236.05,4.92639059]
[1757925295080,33.96,236.1,236.05,15.51736707]
[1757925295374,13.59559401,236.11,236.05,15.51736707]
[1757925295583,13.59559401,236.16,236.06,0.69]
[1757925295882,13.59559401,236.16,236.08,0.06]
[1757925296081,26.0,236.12,236.08,0.06]
[1757925296586,26.0,236.12,236.08,0.75]
[1757925296993,26.0,236.12,236.08,0.06]
[1757925297559,26.0,236.12,236.09,14.82485492]
[1757925299194,34.66,236.11,236.08,0.06]
[1757925299576,0.7,236.1,236.08,0.06]
[1757925300082,0.7,236.09,236.08,4.29584787]
[1757925300286,26.0,236.13,236.08,4.29584787]
[1757925300465,26.0,236.13,236.08,14.8854785]
[1757925300665,33.96,236.12,236.08,14.8854785]
[1757925300989,0.7,236.11,236.08,4.29584787]
[1757925301172,0.7,236.1,236.08,4.29584787]
[1757925301373,59.96,236.09,236.08,0.06]
[1757925301577,33.96,236.09,236.08,4.29585225]
[1757925301888,34.66,236.09,236.08,0.06]
[1757925302082,0.7,236.09,236.08,4.29585225]
[1757925302287,34.66,236.09,236.08,4.29585225]
[1757925302591,34.66,236.09,236.08,0.06]
[1757925302762,34.66,236.09,236.08,4.29585225]
[1757925303378,34.66,236.09,236.08,0.06]
[1757925303590,48.25559401,236.09,236.08,0.06]
[1757925304567,52.49126684,236.09,235.96,10.59484678]
[1757925304770,39.59559401,236.05,235.93,4.23854533]
[1757925304971,33.96,236.04,235.93,14.83464909]
[1757925305290,33.96,236.03,235.93,14.83464909]
[1757925305490,0.7,236.02,235.93,14.83464909]
[1757925305789,39.59559401,236.05,235.93,14.83464909]
[1757925305991,26.0,236.01,235.93,14.83464909]
[1757925306183,13.59559401,235.99,235.92,4.31983642]
[1757925306500,26.0,235.95,235.92,4.00107842]
[1757925306676,32.64,235.94,235.9,10.59744574]
[1757925306880,0.7,235.93,235.9,10.59744574]
[1757925307077,13.59559401,235.95,235.89,4.23926406]
[1757925307300,34.1,235.92,235.89,4.23926406]
[1757925307594,0.7,235.91,235.87,4.23962352]
[1757925307897,34.82,235.9,235.87,4.23962352]
[1757925308085,34.82,235.89,235.87,4.23962352]
[1757925308410,34.82,235.88,235.82,10.60112018]
[1757925308570,39.59559401,235.95,235.82,10.60112018]
[1757925308771,26.0,235.92,235.82,14.84164261]
[1757925308979,34.12,235.91,235.82,14.84164261]
[1757925309298,34.14,235.92,235.83,0.67]
[1757925310887,26.0,235.95,235.84,36.04138398]
[1757925311091,133.22,236.01,235.85,0.67]
[1757925311300,34.12,236.0,235.85,0.67]
[1757925311977,34.12,235.99,235.85,0.67]
[1757925312176,133.22,236.01,235.85,0.67]
[1757925312384,34.12,236.0,235.85,0.67]
[1757925313110,0.72,235.99,235.86,36.03832781]
[1757925313273,0.72,235.99,235.87,0.67]
[1757925313813,34.84,236.03,235.89,26.0]
[1757925314013,34.12,236.02,235.9,0.67]
[1757925314916,0.72,236.01,235.9,0.67]
[1757925315079,0.72,236.01,235.91,14.83616632]
[1757925315275,0.72,236.0,235.91,14.83616632]
[1757925315672,0.72,235.99,235.91,14.83616632]
[1757925315886,0.72,235.98,235.91,14.83616632]
[1757925316775,61.34,236.02,235.91,36.70068965]
[1757925317081,1.22,236.02,235.91,21.19452333]
[1757925317279,0.72,236.02,235.92,0.67]
[1757925317600,0.72,236.1,235.96,26.0]
[1757925317899,0.72,236.1,235.97,0.67]
[1757925318099,0.72,236.09,235.93,26.0]
[1757925318272,0.72,236.18,235.97,46.0]
[1757925318477,0.72,236.18,236.02,26.0]
[1757925318889,13.59559401,236.16,235.91,0.67]
[1757925319211,26.0,236.03,235.92,14.83553746]
[1757925319394,56.04,236.03,235.92,14.83553746]
[1757925319591,0.72,236.02,235.92,14.83553746]
[1757925319932,0.72,236.01,235.92,14.83553746]
[1757925320307,26.0,235.99,235.92,4.23872499]
[1757925320499,0.72,235.98,235.92,4.23872499]
[1757925320698,26.0,235.99,235.92,14.83553746]
[1757925320897,26.72,235.99,235.92,14.83553746]
[1757925321203,0.72,235.99,235.88,36.03527216]
[1757925321711,0.72,235.99,235.88,14.83805324]
[1757925321915,26.72,235.98,235.88,14.83805324]
[1757925322103,0.72,235.97,235.88,14.83805324]
[1757925322891,35.08,235.97,235.88,14.83805324]
[1757925323085,34.36,235.97,235.88,14.83805324]
[1757925323392,0.72,236.0,235.89,0.67]
[1757925323590,13.59559401,235.99,235.88,14.83805324]
[1757925323815,0.72,235.98,235.88,14.83805324]
[1757925324302,0.72,235.97,235.88,14.83805324]
[1757925325618,14.31559401,235.96,235.88,14.83805324]
[1757925325794,0.72,235.95,235.88,14.83805324]
[1757925326296,0.72,235.94,235.88,14.83805324]
[1757925327224,0.72,235.94,235.83,4.24034261]
[1757925327529,74.29763922,235.99,235.83,4.24034261]
[1757925327530,13.59559401,235.92,235.83,4.24034261]
[1757925327819,0.72,235.91,235.83,14.84119915]
[1757925329394,0.72,235.91,235.75,26.0]
[1757925329395,13.59559401,235.84,235.74,4.24196148]
[1757925329595,34.44,235.84,235.75,11.27443744]
[1757925329905,34.44,235.84,235.77,2.21721375]
[1757925330301,26.0,235.85,235.77,2.21721375]
[1757925330503,34.44,235.84,235.77,2.21721375]
[1757925330997,13.59559401,235.83,235.77,2.21721375]
[1757925331204,13.59559401,235.83,235.75,10.60443744]
[1757925331523,0.72,235.82,235.75,10.60443744]
[1757925332123,26.72,235.85,235.75,11.27443744]
[1757925332298,0.72,235.89,235.76,0.67]
[1757925332500,34.42,235.88,235.76,0.67]
[1757925333212,34.42,235.88,235.77,14.84497603]
[1757925333619,0.67,235.87,235.77,14.84497603]
[1757925333799,0.67,235.86,235.77,14.84497603]
[1757925334130,0.67,235.85,235.77,14.84497603]
[1757925334320,26.67,235.84,235.76,0.06]
[1757925334495,26.0,235.83,235.76,0.06]
[1757925334960,35.09,235.82,235.76,0.06]
[1757925335313,35.09,235.82,235.77,4.24142172]
[1757925335518,34.4,235.81,235.77,4.24142172]
[1757925335698,35.07,235.81,235.77,4.24142172]
[1757925336030,0.67,235.8,235.77,4.24142172]
[1757925336226,0.67,235.8,235.77,14.84497603]
[1757925336399,132.5,235.86,235.78,0.66]
[1757925336733,166.9,235.86,235.78,0.66]
[1757925337424,167.57,235.86,235.79,14.84371686]
[1757925337811,34.4,235.85,235.79,14.84371686]
[1757925338697,132.5,235.94,235.79,14.84371686]
[1757925339032,0.69,235.9,235.79,15.56371686]
[1757925339197,35.09,235.89,235.77,0.72]
[1757925339397,26.0,235.85,235.77,4.24141196]
[1757925339629,26.0,235.85,235.77,14.84496627]
[1757925339928,35.07,235.84,235.77,14.84496627]
[1757925340536,14.28559401,235.83,235.77,14.84496627]
[1757925340817,0.69,235.82,235.77,14.84496627]
[1757925341026,0.69,235.81,235.77,4.24141196]
[1757925341532,34.44,235.82,235.77,4.24141196]
[1757925342025,34.42,235.82,235.77,4.96141196]
[1757925342234,34.42,235.82,235.77,4.24141196]
[1757925342407,35.11,235.82,235.77,14.84496627]
[1757925342616,0.69,235.81,235.77,4.24141196]
[1757925342802,0.69,235.81,235.76,0.06]
[1757925343009,0.69,235.81,235.76,4.30156003]
[1757925343207,34.42,235.82,235.76,4.30156003]
[1757925343414,34.42,235.82,235.76,14.9055641]
[1757925343750,34.42,235.83,235.76,14.9055641]
[1757925344233,0.69,235.85,235.76,14.9055641]
[1757925344397,132.5,235.87,235.77,0.72]
[1757925345330,133.19,235.87,235.78,4.24124183]
[1757925345623,13.59559401,235.85,235.78,4.24124183]
[1757925345794,35.11,235.84,235.78,4.24124183]
[1757925345997,0.69,235.84,235.78,14.84434641]
[1757925346718,34.46,235.85,235.78,14.84434641]
[1757925346921,34.46,235.86,235.78,14.84434641]
[1757925347397,132.5,235.87,235.79,0.72]
[1757925348207,35.15,235.88,235.79,0.72]
[1757925349211,35.15,235.88,235.78,14.84434641]
[1757925349415,0.69,235.87,235.78,10.60310458]
[1757925350520,34.44,235.89,235.79,0.72]
[1757925350722,34.46,235.89,235.79,0.72]
[1757925351213,0.69,235.88,235.79,0.72]
[1757925351614,0.69,235.88,235.8,14.84308735]
[1757925352138,0.69,235.88,235.8,36.04749786]
[1757925353209,132.5,235.91,235.81,0.72]
[1757925353430,0.69,235.92,235.81,0.72]
[1757925353637,0.69,235.91,235.82,36.04444067]
[1757925354022,0.5,235.89,235.82,36.04444067]
[1757925354420,0.69,235.91,235.82,36.04444067]
[1757925354625,0.69,235.91,235.82,36.76444067]
[1757925354830,35.11,235.94,235.83,0.72]
[1757925355253,0.03,235.92,235.83,0.72]
[1757925355438,0.69,235.91,235.8,0.72]
[1757925355633,0.69,235.91,235.81,4.24070226]
[1757925355634,26.69,235.91,235.81,4.24070226]
[1757925355844,0.03,235.92,235.82,0.72]
[1757925357755,0.03,235.92,235.83,14.84119915]
[1757925357950,0.03,235.92,235.84,0.71]
[1757925359637,0.03,235.92,235.85,14.83994064]
[1757925360242,0.03,235.92,235.86,0.71]
[1757925360639,0.65,235.91,235.85,14.83994064]
[1757925360846,0.03,235.92,235.85,14.83994064]
[1757925361046,0.03,235.92,235.85,15.54994064]
[1757925361261,0.03,235.92,235.85,36.74985584]
[1757925361457,0.03,235.92,235.86,0.71]
[1757925361638,0.03,235.92,235.87,14.83868232]
[1757925362051,0.03,235.92,235.88,0.71]
[1757925362630,0.65,236.05,235.89,13.59559401]
[1757925362836,0.65,236.05,235.9,35.35]
[1757925363056,0.65,236.04,235.91,0.71]
[1757925363645,0.65,236.04,235.92,36.02916241]
[1757925363943,0.68,236.07,235.93,0.71]
[1757925364748,0.03,236.07,235.93,0.71]
[1757925365155,0.03,236.07,235.94,13.59559401]
[1757925365359,0.03,236.07,235.95,0.71]
[1757925365553,0.03,236.07,235.98,13.59559401]
[1757925365761,0.03,236.07,235.99,36.72847534]
[1757925366155,0.03,236.07,236.0,0.71]
[1757925366961,0.03,236.07,236.0,35.33]
[1757925367667,0.03,236.07,236.01,14.82988008]
[1757925368237,0.5,236.05,236.01,14.82988008]
[1757925368663,0.5,236.05,236.02,0.71]
[1757925369660,0.5,236.05,236.03,4.23674956]
[1757925369848,0.69,236.04,235.99,4.23746768]
[1757925370168,0.69,236.04,235.99,14.8311369]
[1757925370589,0.5,236.05,235.99,14.8311369]
[1757925370757,0.5,236.05,236.0,0.71]
[1757925371656,0.5,236.05,236.01,14.82988008]
[1757925372472,26.0,236.03,235.81,20.0]
[1757925372772,0.69,236.02,235.88,0.71]
[1757925373551,26.69,236.02,235.89,14.83742421]
[1757925373781,13.59559401,236.0,235.89,14.83742421]
[1757925373956,0.69,235.99,235.89,14.83742421]
[1757925374152,0.69,235.98,235.89,4.23926406]
[1757925374362,26.69,235.97,235.89,4.23926406]
[1757925374570,0.69,235.96,235.89,4.23926406]
[1757925374741,0.69,235.95,235.83,14.84091702]
[1757925374941,26.0,235.93,235.83,14.84091702]
[1757925375147,0.69,235.92,235.88,0.06]
[1757925375450,0.69,235.91,235.88,0.06]
[1757925375674,0.69,235.91,235.88,4.29943669]
[1757925375882,26.0,235.94,235.88,4.29943669]
[1757925376382,26.0,235.92,235.88,0.06]
[1757925376548,0.69,235.93,235.88,0.06]
[1757925376549,13.59559401,235.91,235.88,0.06]
[1757925376743,26.0,235.89,235.88,0.06]
[1757925377143,40.28559401,235.89,235.88,0.06]
[1757925377653,44.52485807,235.89,235.88,0.06]
[1757925377971,79.20485807,235.89,235.88,0.06]
[1757925378356,55.67697036,235.89,235.88,0.06]
[1757925378575,51.4377063,235.89,235.88,0.06]
[1757925378774,75.02559401,235.89,235.88,0.06]
[1757925379277,0.69,235.91,235.88,0.06]
[1757925379453,0.69,235.9,235.88,4.29943526]
[1757925379783,53.03763404,235.92,235.88,4.29943526]
[1757925379960,18.29763404,235.92,235.88,4.29943526]
[1757925380170,18.29763404,235.92,235.88,14.89804472]
[1757925380565,18.29763404,235.92,235.88,4.29943526]
[1757925380566,0.69,235.91,235.88,4.29943526]
[1757925380796,18.29763404,235.92,235.88,4.29943526]
[1757925380971,0.69,235.91,235.88,0.06]
[1757925381360,0.69,235.9,235.88,0.06]
[1757925381982,0.69,235.89,235.88,0.06]
[1757925382187,18.29763404,235.92,235.88,0.06]
[1757925382490,18.29763404,235.92,235.88,4.29942669]
[1757925382668,18.29763404,235.92,235.88,14.89803615]
[1757925382869,18.29763404,235.92,235.89,0.71]
[1757925383077,18.29763404,235.92,235.9,0.71]
[1757925383273,18.29763404,235.92,235.91,0.71]
[1757925383457,0.72,236.0,235.91,0.71]
[1757925383797,0.03,236.0,235.92,36.02916241]
[1757925383971,0.03,236.0,235.93,0.71]
[1757925384363,0.03,236.0,235.92,36.02916241]
[1757925384588,0.03,236.0,235.92,14.83553746]
[1757925384765,0.03,236.0,235.93,0.71]
[1757925385787,0.03,236.0,235.94,36.02610832]
[1757925385985,0.03,236.0,235.95,0.71]
[1757925387989,0.03,236.0,235.96,14.83302254]
[1757925388398,0.03,236.0,235.97,0.71]
[1757925389109,1e-08,236.07,235.97,0.71]
[1757925389418,1e-08,236.07,235.98,34.74]
[1757925389914,1e-08,236.07,235.99,0.71]
[1757925390098,1e-08,236.07,236.0,14.83050846]
[1757925390406,1e-08,236.07,236.0,36.01694913]
[1757925390613,1e-08,236.07,236.01,0.71]
[1757925392215,1e-08,236.07,236.02,14.82925175]
[1757925392627,1e-08,236.07,236.03,35.41]
[1757925392819,1e-08,236.07,236.03,0.71]
[1757925393028,1e-08,236.07,236.04,0.71]
[1757925393523,1e-08,236.07,236.05,4.23639059]
[1757925394529,0.69,236.06,236.05,4.23639059]
[1757925394822,1e-08,236.07,236.05,4.23639059]
[1757925395809,1e-08,236.07,236.06,0.71]
[1757925396612,1e-08,236.07,236.04,14.82799525]
[1757925396813,1e-08,236.07,236.06,0.71]
[1757925397218,1e-08,236.07,236.04,14.82799525]
[1757925397436,1e-08,236.07,236.04,15.53799525]
[1757925398715,1e-08,236.07,236.05,0.66]
[1757925398931,1e-08,236.12,236.05,0.66]
[1757925399714,1e-08,236.16,236.06,13.59559401]
[1757925399935,1e-08,236.16,236.07,36.66626931]
[1757925400159,1e-08,236.16,236.08,34.6]
[1757925400653,1e-08,236.16,236.09,0.66]
[1757925401839,0.72000001,236.16,236.07,31.77023763]
[1757925402017,1e-08,236.16,236.07,32.43023763]
[1757925402528,1e-08,236.16,236.07,31.77023763]
[1757925402732,1e-08,236.16,236.08,0.66]
[1757925404355,1e-08,236.16,236.09,36.0032191]
[1757925404550,1e-08,236.16,236.1,34.56]
[1757925405246,0.72000001,236.16,236.09,14.82485492]
[1757925405450,0.72,236.15,236.09,14.82485492]
[1757925406327,0.72,236.15,236.09,10.58918209]
[1757925406542,1e-08,236.16,236.09,11.24918209]
[1757925407145,1e-08,236.16,236.1,0.66]
[1757925408526,1e-08,236.16,236.11,14.82359916]
[1757925408730,1e-08,236.16,236.12,34.5]
[1757925408947,1e-08,236.16,236.12,35.16]
[1757925409141,1e-08,236.16,236.13,0.66]
[1757925409519,1e-08,236.16,236.14,0.66]
[1757925410049,1e-08,236.24,236.16,26.0]
[1757925410225,1e-08,236.24,236.17,34.52]
[1757925410425,1e-08,236.24,236.18,14.81920568]
[1757925410844,1e-08,236.24,236.18,35.98949952]
[1757925411376,1e-08,236.24,236.19,35.16]
[1757925411842,1e-08,236.24,236.18,35.98949952]
[1757925411843,1e-08,236.24,236.2,0.66]
[1757925412048,1e-08,236.24,236.18,35.98949952]
[1757925412249,1e-08,236.24,236.19,34.5]
[1757925412561,1e-08,236.24,236.2,14.81795088]
[1757925413051,0.72,236.23,236.2,14.81795088]
[1757925414034,0.72,236.22,236.2,14.81795088]
[1757925414243,1e-08,236.24,236.2,4.23370025]
[1757925414433,0.72,236.21,236.13,55.67428941]
[1757925414637,0.72,236.2,236.11,14.82359916]
[1757925416556,0.72,236.2,236.11,36.0001694]
[1757925416759,1e-08,236.24,236.11,36.0001694]
[1757925416760,0.72000001,236.24,236.11,36.0001694]
[1757925417453,0.71,236.23,236.11,14.82359916]
[1757925417652,0.71,236.22,236.11,14.82359916]
[1757925417861,0.71,236.21,236.11,14.82359916]
[1757925418241,0.71,236.2,236.11,14.82359916]
[1757925418437,26.0,236.21,236.11,14.82359916]
[1757925418438,0.71,236.19,236.11,14.82359916]
[1757925419551,26.0,236.22,236.11,36.0001694]
[1757925420068,0.71,236.21,236.11,14.82359916]
[1757925420545,0.71,236.21,236.11,36.0001694]
[1757925420742,0.71,236.21,236.11,14.82359916]
[1757925421052,26.71,236.2,236.11,4.23531404]
[1757925421565,13.59559401,236.19,236.1,0.06]
[1757925421773,39.59559401,236.15,236.1,0.06]
[1757925421951,39.59559401,236.15,236.1,4.29546396]
[1757925422149,0.71,236.14,236.1,4.29546396]
[1757925422355,0.71,236.13,236.1,4.29546396]
[1757925423053,26.0,236.14,236.1,4.29546396]
[1757925423351,0.71,236.13,236.1,4.29546396]
[1757925423559,0.71,236.13,236.1,14.88419754]
[1757925423758,26.0,236.14,236.1,14.88419754]
[1757925424070,0.71,236.13,236.1,14.88419754]
[1757925424274,0.71,236.12,236.1,14.88419754]
[1757925424583,0.71,236.11,236.1,4.29546396]
[1757925424874,0.71,236.11,236.1,0.06]
[1757925426277,18.54090805,236.11,236.1,0.06]
[1757925426446,18.54090805,236.11,236.07,0.06]
[1757925426447,26.0,236.08,236.07,0.06]
[1757925426647,26.0,236.08,236.05,0.06]
[1757925426648,13.59559401,236.07,236.05,0.06]
[1757925426958,17.83180514,236.06,236.05,0.06]
[1757925427455,18.54180514,236.06,236.05,0.06]
[1757925428185,53.02180514,236.06,236.05,0.06]
[1757925428746,13.59559401,235.98,235.88,10.65837802]
[1757925428984,35.15,235.97,235.89,4.23926406]
[1757925429275,35.15,235.97,235.89,14.83742421]
[1757925429684,35.15,235.97,235.89,4.23926406]
[1757925429872,13.59559401,235.95,235.88,0.06]
[1757925430063,13.59559401,235.95,235.88,4.29944087]
[1757925430276,0.69,235.94,235.88,4.29944087]
[1757925430467,34.48,235.93,235.88,4.29944087]
[1757925430686,0.69,235.92,235.88,4.29944087]
[1757925431870,0.69,235.91,235.88,0.06]
[1757925432488,0.69,235.9,235.88,0.06]
[1757925432877,0.69,235.89,235.88,0.06]
[1757925433271,26.0,235.9,235.88,0.06]
[1757925433578,34.42,235.91,235.88,0.06]
[1757925433783,35.11,235.91,235.88,0.06]
[1757925433962,0.69,235.9,235.88,0.06]
[1757925434286,34.42,235.9,235.88,4.29941172]
[1757925434486,26.0,235.93,235.88,4.29941172]
[1757925434674,26.0,235.93,235.88,14.89802118]
[1757925434880,60.42,235.93,235.88,14.89802118]
[1757925435064,60.42,235.93,235.88,0.06]
[1757925435259,0.69,235.92,235.88,0.06]
[1757925435466,35.11,235.92,235.88,4.29928968]
[1757925435877,26.0,235.93,235.88,14.89789914]
[1757925436078,60.42,235.93,235.88,14.89789914]
[1757925436707,60.4,235.93,235.88,14.89789914]
[1757925437293,26.0,235.93,235.88,14.89789914]
[1757925437493,145.24724341,236.03,235.88,14.89789914]
[1757925437494,145.24724341,236.03,235.89,0.67]
[1757925437717,132.5,236.03,235.89,0.67]
[1757925438016,47.97559401,236.02,235.89,0.67]
[1757925438204,133.19,236.03,235.89,0.67]
[1757925438384,34.38,236.01,235.89,0.67]
[1757925439098,34.38,236.01,235.9,36.03221702]
[1757925439298,34.38,236.01,235.91,0.67]
[1757925441199,35.07,236.01,235.92,14.83553746]
[1757925441415,0.69,236.0,235.92,4.23872499]
[1757925441605,0.69,235.99,235.92,4.23872499]
[1757925441807,26.69,235.98,235.88,0.06]
[1757925441996,39.59559401,235.97,235.89,4.23926406]
[1757925442310,34.36,235.97,235.9,0.67]
[1757925442510,34.4,235.99,235.9,0.67]
[1757925443098,26.69,236.0,235.91,14.83616632]
[1757925443298,34.4,235.99,235.91,14.83616632]
[1757925444108,34.4,235.99,235.91,36.03068965]
[1757925445222,35.09,235.99,235.91,36.03068965]
[1757925445603,35.09,235.99,235.91,14.83616632]
[1757925445919,133.19,236.03,235.92,0.67]
[1757925446095,34.36,236.02,235.92,0.67]
[1757925447317,34.36,236.02,235.93,14.83490865]
[1757925447536,0.69,236.01,235.93,14.83490865]
[1757925448027,26.0,236.04,235.94,0.67]
[1757925448204,0.69,236.05,235.94,0.67]
[1757925449103,0.69,236.05,235.93,14.83490865]
[1757925449104,26.0,236.04,235.93,14.83490865]
[1757925449294,30.92678979,236.03,235.93,10.59636332]
[1757925449497,35.01,236.02,235.93,10.59636332]
[1757925449725,0.69,236.01,235.93,10.59636332]
[1757925449906,0.69,236.0,235.91,4.23890466]